{"text_format":"1","workbook":"xlsx","n_sheets":41,"sheets":["modList01","Инструкция","Лог обновления","Титульный","Список МО","Показатели (факт)","Показатели (2)","Потр. характеристики","Инвестиции","Инвестиции исправления","Ссылки на публикации","Комментарии","Проверка","AllSheetsInThisWorkbook","TEHSHEET","et_union_hor","et_union_vert","modInfo","modRegion","modReestr","modfrmSelectData","modfrmReestr","modUpdTemplMain","REESTR_ORG","modClassifierValidate","modProv","modHyp","modList00","modList02","modList03","modList04","modList05","modList06","modList07","modfrmDateChoose","modComm","modThisWorkbook","REESTR_MO","modfrmReestrMR","modfrmCheckUpdates","CopyList"],"not_rendered":{"charts":0,"images":21,"macros":1,"external_links":0,"defined_names":180,"comments":0,"pivot_tables":0},"unopened":[],"bounds":{"document_bytes":16777216,"sheet_cells":100000,"rows_first":2000,"rows_last":500,"rows_between":2000,"halvings":0,"cell_chars":16384,"cell_head_chars":4096},"cells_cut":0,"cells_raw":0,"read":"whole","date_system":"1900"}

{"sheet":"modList01","index":0,"n_rows":0,"n_cols":0,"rows_kept":0,"cut":false,"hidden":true,"merged":[]}

{"sheet":"Инструкция","index":1,"n_rows":102,"n_cols":27,"rows_kept":102,"cut":false,"hidden":false,"merged":[[21,15,21,23],[34,4,38,23],[57,4,57,6],[75,4,75,23],[45,4,56,23],[69,4,69,23],[71,4,71,23],[57,7,57,23],[21,5,21,12],[40,4,44,23],[22,15,22,22],[59,7,59,23],[74,4,74,23],[59,4,59,6],[72,4,72,23],[58,4,58,6],[1,1,1,6],[2,1,2,2],[4,1,4,24],[6,4,18,23],[20,5,20,12],[20,15,20,23],[58,7,58,23],[39,4,39,23],[70,4,70,23],[60,7,60,23],[79,8,79,23],[76,4,76,23],[73,4,73,23],[82,4,82,6],[78,4,78,23],[79,4,79,7],[101,5,101,23],[99,5,99,18],[80,4,80,6],[80,7,80,23],[81,4,81,6],[83,7,83,23],[82,7,82,23],[81,7,81,23],[97,4,97,23]]}
[null,null,null,null,null,null,null,null,null,null,null,null,null,null,null,null,null,null,null,null,null,null,null,null,null,null," (требуется обновление)"]
[null,{"$f":"\"Код шаблона: \" & GetCode()","v":"Код шаблона: JKH.OPEN.INFO.BALANCE.WARM"}]
[null,{"$f":"\"Версия \" & GetVersion()","v":"Версия 6.0.2"}]
[]
[null,"Показатели, подлежащие раскрытию теплоснабжающими, теплосетевыми организациями"]
[]
[null,null,null,null,"• На рабочем месте должен быть установлен MS Office 2003 SP3, 2007 SP3, 2010 с полной версией MS Excel\n\n• Макросы во время работы должны быть включены (!)\n\n• Для корректной работы отчёта требуется выбрать низкий уровень безопасности\n(В меню MS Excel 2003: Сервис | Макрос | Безопасность | выбрать пункт «Низкая безопасность» | OK)\n(В меню MS Excel 2007/2010: Параметры Excel | Центр управления безопасностью | Параметры центра управления безопасностью | Параметры макросов | Включить все макросы | ОК)\n\n• Если Вы работаете в табличном процессоре MS Excel 2007 и выше, то можете использовать для работы формат XLSM (Книга Excel с поддержкой макросов). При работе в формате XLSM заметно быстрее происходит сохранение файла, а также уменьшается размер по сравнению с форматом XLS\n\n• Не рекомендуется снимать защиту с листов и каким-либо образом модифицировать защищаемые формулы и расчётные поля, в противном случае, отчёт будет отклонён системой\n\n• При сохранении не следует выбирать формат XLSX (Книга Excel), так как в указанном формате макросы, необходимые для работы отчёта, безвозвратно удаляются"]
[]
[]
[]
[]
[]
[]
[]
[]
[]
[]
[]
[]
[]
[null,null,null,null,"A"," - необязательные для заполнения",null,null,null,null,null,null,null,null,"A"," - с формулами и константами"]
[null,null,null,null,"A"," - обязательные для заполнения",null,null,null,null,null,null,null,null,"A"," - с выбором значений до двойному клику,"]
[null,null,null,null,null,null,null,null,null,null,null,null,null,null,null,"либо с возможностью выбора даты из календаря или ручного ввода"]
[]
[]
[]
[]
[]
[]
[]
[]
[]
[]
[]
[null,null,null,null,"Если в предложенном Вам списке необходимая организация, МР/МО отсутствуют, обновите реестры с помощью кнопок\n\nВ результате синхронизации с базой данных список организаций (МР/МО) будет заменён актуальным (механизм синхронизации требует подключения к сети Интернет и основан на использовании протокола HTTPS (TCP порт 443))\n\nЕсли после обновления Вам не удалось найти необходимую организацию в списке, обратитесь к ответственному за поддержание реестра Вашего региона. Информация о региональных органах регулирования доступна по ссылке:"]
[]
[]
[]
[]
[null,null,null,null,"http://www.fstrf.ru/regions/region/showlist"]
[]
[]
[]
[]
[]
[null,null,null,null,"• При сохранении шаблона осуществляется проверка корректности данных, в том числе на наличие значений в ячейках, обязательных для заполнения\n\n• Если какая-то ячейка не удовлетворяет условию проверки, на лист «Проверка» добавляется гиперссылка на данную ячейку и указывается причина ошибки\n\n• В колонке «Статус» для каждого сообщения возможны 2 значения: ошибка и предупреждение\n\n• При наличии сообщений со статусом «Ошибка» шаблон будет отклонён системой и не будет загружен в хранилище данных, сообщения со статусом «Предупреждение» носят информационный характер, и такой шаблон будет принят системой"]
[]
[]
[]
[]
[]
[]
[]
[]
[]
[]
[]
[null,null,null,null,"Web-сайт:",null,null,"http://support.eias.ru/index.php?a=add&catid=5"]
[null,null,null,null,"Дистрибутивы:",null,null,"http://eias.ru/?page=show_distrs"]
[null,null,null,null,null,null,null,"для устранения ошибок (например, \"Compile error in hidden module\")"]
[]
[]
[]
[]
[]
[]
[]
[]
[]
[null,null,null,null,"Принципы работы с шаблоном"]
[null,null,null,null," Перед началом работы с шаблоном Вам необходимо нажать кнопку \"Приступить к заполнению\", после чего на форме выбора выбрать из выпадающего списка нужный субъект РФ. После выбора субъекта РФ в шаблоне отобразятся листы для заполнения."]
[null,null,null,null," На листе «Титульный» нужно заполнить все ячейки голубого и синего цвета.\n Для создания печатной формы нажмите на иконку принтера на листе «Титульный» (левый верхний угол)."]
[null,null,null,null," Гиперссылки на листах вводите, не нарушая цвет ячейки (если копируете гиперссылку из браузера, то выполните двойной щелчок левой кнопки мыши по ячейке и только после этого можете вставить скопированный элемент).\n"]
[null,null,null,null," При вводе даты на расчетных листах необходимо выбрать дату из календаря (иконка справа от выбранной ячейки), либо ввести дату непосредственно в ячейку в формате - 'ДД.ММ.ГГГГ'."]
[null,null,null,null," Если какой-либо из показателей на расчетных листах для Вашей организации отсутствует, введите в поле, обязательное для заполнение, «0» (для числовых показателей) и «-» (для текстовых).\n"]
[null,null,null,null," Внимательно следите за информационными сообщениями на расчетных листах."]
[null,null,null,null," Все необходимые комментарии по всем формам Вы можете отразить на листе «Комментарии»."]
[]
[null,null,null,null,"Обосновывающие материалы (документы) необходимо загружать с помощью \"ЕИАС Мониторинг\""]
[null,null,null,null,"Инструкция",null,null,null,"http://eias.ru/files/shablon/manual_loading_through_monitoring.pdf"]
[]
[null,null,null,null,"E-mail:",null,null,"openinfo@eias.ru"]
[null,null,null,null,"Web-сайт:",null,null,"http://eias.ru/?page=show_templates"]
[]
[]
[]
[]
[]
[]
[]
[]
[]
[]
[]
[]
[]
[]
[null,null,null,null,"При наличии подключения к Интернет, можно автоматически проверять наличие доступных обновлений. Выберите способ оповещения о наличии обновлений для отчёта:"]
[]
[null,null,null,null,null,"проверять доступные обновления (рекомендуется)",null,null,null,null,null,null,null,null,null,null,null,null,null,null,null,null,null,null,null,null,"y"]
[]
[null,null,null,null,null,"никогда не проверять наличие обновлений (не рекомендуется)"]

{"sheet":"Лог обновления","index":2,"n_rows":18,"n_cols":3,"rows_kept":18,"cut":false,"hidden":true,"merged":[]}
["Дата/Время","Сообщение","Статус"]
[]
["2016-03-18T10:42:29","Проверка доступных обновлений...","Информация"]
["2016-03-18T10:42:29","Версия шаблона 6.0.2 актуальна, обновление не требуется","Информация"]
["2016-03-18T10:44:30","Проверка доступных обновлений...","Информация"]
["2016-03-18T10:44:30","Версия шаблона 6.0.2 актуальна, обновление не требуется","Информация"]
["2016-03-18T11:36:43","Проверка доступных обновлений...","Информация"]
["2016-03-18T11:36:43","Версия шаблона 6.0.2 актуальна, обновление не требуется","Информация"]
["2016-03-18T11:54:39","Проверка доступных обновлений...","Информация"]
["2016-03-18T11:54:40","Версия шаблона 6.0.2 актуальна, обновление не требуется","Информация"]
["2016-03-18T12:57:39","Проверка доступных обновлений...","Информация"]
["2016-03-18T12:57:40","Версия шаблона 6.0.2 актуальна, обновление не требуется","Информация"]
["2016-03-18T13:01:05","Проверка доступных обновлений...","Информация"]
["2016-03-18T13:01:06","Версия шаблона 6.0.2 актуальна, обновление не требуется","Информация"]
["2016-03-18T14:59:29","Проверка доступных обновлений...","Информация"]
["2016-03-18T14:59:29","Версия шаблона 6.0.2 актуальна, обновление не требуется","Информация"]
["2016-03-18T15:05:25","Проверка доступных обновлений...","Информация"]
["2016-03-18T15:05:26","Версия шаблона 6.0.2 актуальна, обновление не требуется","Информация"]

{"sheet":"Титульный","index":3,"n_rows":56,"n_cols":6,"rows_kept":56,"cut":false,"hidden":false,"merged":[[4,4,4,5]]}
[null,null,null,null,null,26615929]
[]
[]
[null,null,null,null,null,{"$f":"version","v":"Версия 6.0.2"}]
[null,null,null,null,"Показатели, подлежащие раскрытию теплоснабжающими, теплосетевыми организациями"]
[]
[null,null,null,null,"Субъект РФ","Калининградская область"]
[]
[null,null,null,null,"Публикация","На сайте регулирующего органа"]
[]
["Сайт организации в сети Интернет",null,null,null,"По желанию организации информация раскрыта в дополнительных источниках публикации?","да"]
[]
[null,null,null,null,"Отчетный период (год)",2015]
[]
[null,null,null,null,"Является ли данное юридическое лицо подразделением (филиалом) другой организации","да"]
[]
[null,null,null,null,"Наименование организации","Филиал \"Калининградская ТЭЦ-2\" АО \"Интер РАО - Электрогенерация\""]
[null,null,null,null,"Наименование филиала","Филиал \"Калининградская ТЭЦ-2\" АО \"Интер РАО - Электрогенерация\""]
[null,null,null,null,"ИНН","7704784450"]
[null,null,null,null,"КПП","390643001"]
[]
[null,null,null,null,"Вид деятельности","производство тепловой энергии (мощности) в режиме комбинированной выработки электрической и тепловой энергии источниками тепловой энергии с установленной генерирующей мощностью производства электрической энергии 25 МВт и более"]
[]
[null,null,null,null,"Производство"]
[null,null,null,null,"Передача"]
[null,null,null,null,"Сбыт"]
[]
[null,null,null,null,"Режим налогообложения","общий"]
[]
[null,null,null,null,"Регулируемая организация осуществляет сдачу годового бухгалтерского баланса в налоговые органы","да"]
[]
[null,null,null,null,"Дата направления годового бухгалтерского баланса в налоговые органы","17.02.2016"]
[]
[null,null,null,null,"Превышает ли выручка от регулируемой деятельности 80% совокупной выручки за отчетный год","нет"]
[]
[null,null,null,null,"Организация выполняет инвестиционную программу","нет"]
[]
["Печатное издание",null,null,null,"Отсутствует Интернет в границах территории муниципальных образований, где организация осуществляет регулируемые услуги","нет"]
[]
[null,null,null,null,null,"Адрес регулируемой организации"]
[null,null,null,null,"Юридический адрес","119435, Россия, г.Москва, ул.Большая Пироговская, д.27, стр.1"]
[null,null,null,null,"Почтовый адрес","236034, Россия, г.Калининград, пер. Энергетиков, д.2"]
[]
[null,null,null,null,null,"Руководитель"]
[null,null,null,null,"Фамилия, имя, отчество","Гурылев Олег Юрьевич"]
[null,null,null,null,"(код) номер телефона","+7(4012) 69 03 59"]
[]
[null,null,null,null,null,"Главный бухгалтер"]
[null,null,null,null,"Фамилия, имя, отчество","Сафронова Антонина Алексеевна"]
[null,null,null,null,"(код) номер телефона","+7(4012) 69 03 58"]
[]
[null,null,null,null,null,"Должностное лицо, ответственное за составление формы"]
[null,null,null,null,"Фамилия, имя, отчество","Кувакина Ольга Владимировна"]
[null,null,null,null,"Должность","начальник ПЭО"]
[null,null,null,null,"(код) номер телефона","+7 (4012) 69 03 55"]
[null,null,null,null,"e-mail","kuvakina@ktec2.ru"]

{"sheet":"Список МО","index":4,"n_rows":16,"n_cols":8,"rows_kept":16,"cut":false,"hidden":false,"merged":[[13,3,14,3],[13,4,14,4],[3,3,3,7],[4,3,4,7],[6,5,6,7],[7,5,7,7],[8,5,8,7]]}
[]
[]
[]
[null,null,null,"Дифференциация тарифа"]
[null,null,null,{"$f":"IF(org=0,\"Не определено\",org)","v":"Филиал \"Калининградская ТЭЦ-2\" АО \"Интер РАО - Электрогенерация\""}]
[]
[null,null,null,null,null,"Система теплоснабжения"]
[null,null,null,null,"Условный порядковый номер",1]
[null,null,null,null,"Описание","1"]
[]
[null,null,null,"№ п/п","Муниципальный район","№ п/п","Муниципальное образование","ОКТМО"]
[null,null,null,"1","2","3","4","5"]
[null,null,null,0,null,0]
[null,null,null,1,"Городской округ город Калининград",1,"Городской округ город Калининград","27701000"]
[null,null,null,null,null,null,"Добавить МО"]
[null,null,null,null,"Добавить МР"]

{"sheet":"Показатели (факт)","index":5,"n_rows":78,"n_cols":8,"rows_kept":78,"cut":false,"hidden":false,"merged":[[77,4,77,6],[4,3,4,6],[5,3,5,6],[17,0,21,0]]}
[]
[]
[]
[]
[null,null,null,"Информация об основных показателях финансово-хозяйственной деятельности регулируемых организаций, включая структуру основных производственных затрат\n(в части регулируемой деятельности) *"]
[null,null,null,{"$f":"IF(org=0,\"Не определено\",org)","v":"Филиал \"Калининградская ТЭЦ-2\" АО \"Интер РАО - Электрогенерация\""}]
[]
[null,null,null,"№ п/п","Информация, подлежащая раскрытию","Единица измерения","Значение"]
[null,null,null,"1","2","3","4"]
[null,null,null,"1","Выручка от регулируемой деятельности, в том числе по видам деятельности:","тыс руб",{"$f":"SUM(G11:G13)","v":167872.49002999999}]
[null,null,null,"1.0"]
[null,null,null,"1.1","производство тепловой энергии (мощности) в режиме комбинированной выработки электрической и тепловой энергии источниками тепловой энергии с установленной генерирующей мощностью производства электрической энергии 25 МВт и более","тыс руб",167872.49002999999]
[null,null,null,null,"Добавить вид деятельности"]
[null,null,null,"2","Себестоимость производимых товаров (оказываемых услуг) по регулируемому виду деятельности, включая: ","тыс руб",{"$f":"SUM(G15:G16)+G24+SUM(G27:G35)+G38+G41+G43","v":171868.05757811965}]
[null,null,null,"2.1","Расходы на покупаемую тепловую энергию (мощность), теплоноситель","тыс руб",0]
[null,null,null,"2.2","Расходы на топливо","тыс руб",{"$f":"SUMIF(flagSum_List02_2,\"p\",G17:G23)","v":124184.78276811964}]
["2.2.0",null,null,{"$f":"A17","v":"2.2.0"}]
["2.2.1",null,"О",{"$f":"A18","v":"2.2.1"},"газ природный по регулируемой цене","x",{"$f":"G19*G20+G21","v":124184.78276811964},"p"]
[null,null,null,{"$f":"A18&\".1\"","v":"2.2.1.1"},"Объем","тыс м3",28792.192080000001]
[null,null,null,{"$f":"A18&\".2\"","v":"2.2.1.2"},"Стоимость за единицу объема","тыс руб",4.2707753000000004]
[null,null,null,{"$f":"A18&\".3\"","v":"2.2.1.3"},"Стоимость доставки","тыс руб",1219.8]
[null,null,null,{"$f":"A18&\".4\"","v":"2.2.1.4"},"Способ приобретения","x","прямые договора без торгов"]
[null,null,null,null,"Добавить вид топлива"]
[null,null,null,"2.3","Расходы на покупаемую электрическую энергию (мощность), используемую в технологическом процессе","тыс руб",91.744810000000001]
[null,null,null,"2.3.1","Средневзвешенная стоимость 1 кВт.ч (с учетом мощности)","руб",2.9342009080898079]
[null,null,null,"2.3.2","Объем приобретенной электрической энергии","тыс кВт.ч",31.267392000000001]
[null,null,null,"2.4","Расходы на приобретение холодной воды, используемой в технологическом процессе","тыс руб",55.29]
[null,null,null,"2.5","Расходы на хим.реагенты, используемые в технологическом процессе","тыс руб",69.53]
[null,null,null,"2.6","Расходы на оплату труда основного производственного персонала","тыс руб",3267.39]
[null,null,null,"2.7","Отчисления на социальные нужды основного производственного персонала","тыс руб",959.44]
[null,null,null,"2.8","Расходы на оплату труда административно-управленческого персонала","тыс руб",0]
[null,null,null,"2.9","Отчисления на социальные нужды административно-управленческого персонала","тыс руб",0]
[null,null,null,"2.10","Расходы на амортизацию основных производственных средств","тыс руб",27435.96]
[null,null,null,"2.11","Расходы на аренду имущества, используемого для осуществления регулируемого вида деятельности","тыс руб",0]
[null,null,null,"2.12","Общепроизводственные расходы, в том числе отнесенные к ним:","тыс руб",2463.1999999999998]
[null,null,null,"2.12.1","Расходы на текущий ремонт","тыс руб",74.3]
[null,null,null,"2.12.2","Расходы на капитальный ремонт","тыс руб",0]
[null,null,null,"2.13","Общехозяйственные расходы, в том числе отнесенные к ним:","тыс руб",8968.8799999999992]
[null,null,null,"2.13.1","Расходы на текущий ремонт","тыс руб",14.12]
[null,null,null,"2.13.2","Расходы на капитальный ремонт","тыс руб",0]
[null,null,null,"2.14","Расходы на капитальный и текущий ремонт основных производственных средств, в том числе:","тыс руб",1180.3300000000002]
[null,null,null,"2.14.1","Информация об объемах товаров и услуг, их стоимости и способах приобретения у тех организаций, сумма оплаты услуг которых превышает 20 процентов суммы расходов по указанной статье расходов","x","отсутствует"]
[null,null,null,"2.15","Прочие расходы, которые подлежат отнесению на регулируемые виды деятельности в соответствии с законодательством РФ","тыс руб",{"$f":"SUM(G44:G50)","v":3191.5099999999998}]
[null,null,null,"2.15.0"]
[null,null,"О","2.15.1","пожарная и сторожевая охрана","тыс руб",1148.05]
[null,null,"О","2.15.2","материалы эксплуатационного характера","тыс руб",782.42]
[null,null,"О","2.15.3","услуги эксплуатационного характера","тыс руб",307.12]
[null,null,"О","2.15.4","страхование имущества","тыс руб",943.23]
[null,null,"О","2.15.5","прочие расходы производственного характера","тыс руб",10.69]
[null,null,null,null,"Добавить прочие расходы"]
[null,null,null,"3","Валовая прибыль (убытки) от реализации товаров и оказания услуг по регулируемому виду деятельности","тыс руб",-3995.57]
[null,null,null,"4","Чистая прибыль, полученная от регулируемого вида деятельности, в том числе:","тыс руб",0]
[null,null,null,"4.1","Размер расходования чистой прибыли на финансирование мероприятий, предусмотренных инвестиционной программой","тыс руб",0]
[null,null,null,"5","Сведения об изменении стоимости основных фондов, в том числе за счет их ввода в эксплуатацию (вывода из эксплуатации), а также стоимости их переоценки","тыс руб",1277.05]
[null,null,null,"5.1","За счет ввода (вывода) из эксплуатации","тыс руб",1277.05]
[null,null,null,"6","Стоимость переоценки основных фондов","тыс руб",0]
[null,null,null,"7","Годовая бухгалтерская отчетность, включая бухгалтерский баланс и приложения к нему","x","http://www.irao-generation.ru/information/buhrep/"]
[null,null,null,"8","Установленная тепловая мощность объектов основных фондов, используемых для осуществления регулируемых видов деятельности, в том числе по каждому источнику тепловой энергии:","Гкал/ч",680]
[null,null,null,"8.0"]
[null,null,null,null,"Добавить источник тепловой энергии"]
[null,null,null,"9","Тепловая нагрузка по договорам, заключенным в рамках осуществления регулируемых видов деятельности","Гкал/ч",139.78]
[null,null,null,"10","Объем вырабатываемой регулируемой организацией тепловой энергии в рамках осуществления регулируемых видов деятельности","тыс Гкал",302.75599999999997]
[null,null,null,"11","Объем приобретаемой регулируемой организацией тепловой энергии в рамках осуществления регулируемых видов деятельности","тыс Гкал",0]
[null,null,null,"12","Объем тепловой энергии, отпускаемой потребителям по договорам, заключенным в рамках осуществления регулируемых видов деятельности, в том числе:","тыс Гкал",{"$f":"SUM(G65:G66)","v":285.87079999999997}]
[null,null,null,"12.1","Определенном по приборам учета","тыс Гкал",285.87079999999997]
[null,null,null,"12.2","Определенном расчетным путем (нормативам потребления коммунальных услуг)","тыс Гкал",0]
[null,null,null,"13","Нормативы технологических потерь при передаче тепловой энергии, теплоносителя по тепловым сетям, утвержденные уполномоченным органом","Ккал/ч.мес",0]
[null,null,null,"14","Фактический объем потерь при передаче тепловой энергии","тыс Гкал",0]
[null,null,null,"15","Среднесписочная численность основного производственного персонала"," чел",5]
[null,null,null,"16","Среднесписочная численность административно-управленческого персонала"," чел",0]
[null,null,null,"17","Удельный расход условного топлива на единицу тепловой энергии, отпускаемой в тепловую сеть, в том числе с разбивкой по источникам тепловой энергии, используемым для осуществления регулируемых видов деятельности","кг усл. топл/Гкал",110.86]
[null,null,null,"17.0"]
[null,null,null,null,"Добавить источник тепловой энергии"]
[null,null,null,"18","Удельный расход электрической энергии на производство (передачу) тепловой энергии на единицу тепловой энергии, отпускаемой потребителям по договорам, заключенным в рамках осуществления регулируемой деятельности","тыс кВт.ч/Гкал",2.3E-2]
[null,null,null,"19","Удельный расход холодной воды на производство (передачу) тепловой энергии на единицу тепловой энергии, отпускаемой потребителям по договорам, заключенным в рамках осуществления регулируемой деятельности","м3/Гкал",3.8E-3]
[null,null,null,"20","Комментарии","x"," -"]
[]
[null,null,null,"*","Раскрывается не позднее 30 дней со дня сдачи годового бухгалтерского баланса в налоговые органы."]

{"sheet":"Показатели (2)","index":6,"n_rows":14,"n_cols":16,"rows_kept":14,"cut":false,"hidden":true,"merged":[[9,4,9,13],[4,3,4,8],[5,3,5,8]]}
[]
[]
[]
[]
[null,null,null,"Информация об объемах товаров и услуг, их стоимости и способах приобретения *"]
[null,null,null,{"$f":"IF(org=0,\"Не определено\",org)","v":"Филиал \"Калининградская ТЭЦ-2\" АО \"Интер РАО - Электрогенерация\""}]
[]
[null,null,null,"№ п/п","Наименование поставщика",null,"№ п/п","Способ приобретения","Реквизиты договора",null,"№ п/п","Наименование товара/услуги","Объем приобретенных товаров, услуг","Единица измерения объема","Стоимость, тыс.руб.","Доля расходов, % (от суммы расходов по указанной статье)"]
[null,null,null,"1","2",null,"3","4","5",null,"6","7","8","9","10","11"]
[null,null,null,null,"Расходы на ремонт (текущий и капитальный) основных производственных средств итого. Из них товары и услуги, приобретенные у организаций, сумма оплаты услуг которых превышает 20% суммы расходов по статье",null,null,null,null,null,null,null,null,null,{"$f":"List02_costs_OPS","v":1180.3300000000002}]
[null,null,null,"0"]
[null,null,null,null,"Добавить поставщика"]
[]
[null,null,null,"*","Раскрывается не позднее 30 дней со дня сдачи годового бухгалтерского баланса в налоговые органы."]

{"sheet":"Потр. характеристики","index":7,"n_rows":20,"n_cols":7,"rows_kept":20,"cut":false,"hidden":false,"merged":[[4,3,4,6],[5,3,5,6],[16,4,16,6]]}
[]
[]
[]
[]
[null,null,null,"Информация об основных потребительских характеристиках регулируемых товаров и услуг *"]
[null,null,null,{"$f":"IF(org=0,\"Не определено\",org)","v":"Филиал \"Калининградская ТЭЦ-2\" АО \"Интер РАО - Электрогенерация\""}]
[]
[null,null,null,"№ п/п","Информация, подлежащая раскрытию","Значение","Ссылки на документы"]
[null,null,null,"1","2","3","4"]
[null,null,null,1,"Количество аварий на тепловых сетях (единиц на км) **",0]
[null,null,null,"2","Количество аварий на источниках тепловой энергии (единиц на источник)**",0]
[null,null,null,"3","Показатели надежности и качества, установленные в соответствии с законодательством РФ***","0","http://pravo.gov.ru/proxy/ips/?docbody=&nd=102349855&intelsearch=%EE%F2+16+%EC%E0%FF+2014+%E3.+N+452"]
[null,null,null,"4","Доля числа исполненных в срок договоров о подключении (технологическом присоединении), %",0]
[null,null,null,"5","Средняя продолжительность рассмотрения заявок на подключение (технологическое присоединение), дней",0]
[null,null,null,"6","Комментарии","1. Аварий на тепловой магистрали от Калининградской ТЭЦ-2 (далее КТЭЦ-2) в Южную часть г.Калининграда и оборудования ТНС не было.                              2. Аварий на источниках тепловой энергии КТЭЦ-2 не было.                                              3. Показатели надежности и качества тепловой энергии не нарушались. Режим отпуска тепловой энергии от КТЭЦ-2 соблюдался и регулировался в соответствии с командами Диспетчерской службы МУП \"Калининградтеплосеть\".                                      4-5. Технологических присоединений не было.  "]
[]
[null,null,null,"*","Раскрывается не позднее 30 дней со дня сдачи годового бухгалтерского баланса в налоговые органы."]
[null,null,null,"**","Учитывать любое нарушение системы."]
[null,null,null,"***","В случае, если показатели надежности и качества не утверждены, укажите ссылку на материалы,"]
[null,null,null,null,"подтверждающие информацию (например, ссылка на сайт регулирующего органа)."]

{"sheet":"Инвестиции","index":8,"n_rows":97,"n_cols":10,"rows_kept":97,"cut":false,"hidden":true,"merged":[[4,4,4,7],[5,4,5,7],[21,0,23,0],[89,0,93,0],[79,0,83,0],[84,0,88,0],[18,0,20,0],[74,0,76,0]]}
[]
[]
[]
[]
[null,null,null,null,"Информация об инвестиционных программах *"]
[null,null,null,null,{"$f":"IF(org=0,\"Не определено\",org)","v":"Филиал \"Калининградская ТЭЦ-2\" АО \"Интер РАО - Электрогенерация\""}]
[]
[]
[null,null,null,null,"№ п/п","Наименование показателя","Единица измерения","Значение",{"$f":"\"Мероприятие \" & I10-4","v":"Мероприятие 0"},"Добавить мероприятие"]
[null,null,null,null,"1","2","3","4","4"]
[null,null,null,null,1,"Наименование инвестиционной программы (мероприятия)","x"]
[null,null,null,null,2,"Дата утверждения инвестиционной программы","x","","x"]
[null,null,null,null,"3","Цели инвестиционной программы","x",null,"x"]
[null,null,null,null,"4","Наименование органа исполнительной власти субъекта РФ, утвердившего инвестиционную программу","x",null,"x"]
[null,null,null,null,"5","Наименование органа местного самоуправления, согласовавшего инвестиционную программу","x",null,"x"]
[null,null,null,null,"6","Срок начала реализации инвестиционной программы (мероприятия)","x",""]
[null,null,null,null,"7","Срок окончания реализации инвестиционной программы (мероприятия)","x"]
[null,null,null,null,"8","Потребности в финансовых средствах, необходимых для реализации инвестиционной программы на год, в том числе по источникам финансирования","тыс руб",{"$f":"SUM(I18:J18)","v":0},{"$f":"SUMIF(List06_flag_year,\"y\",I19:I25)","v":0}]
["8.0",null,null,null,{"$f":"A19","v":"8.0"},null,"тыс руб",{"$f":"SUM(H20:H21)","v":0},{"$f":"SUM(I20:I21)","v":0},"y"]
[null,1,null,null,{"$f":"A19&\".\"&B20","v":"8.0.1"},null,"тыс руб"]
[null,null,null,null,null,"Добавить источники"]
["8.1",null,null,null,{"$f":"A22","v":"8.1"},null,"тыс руб",{"$f":"SUM(H23:H24)","v":0},{"$f":"SUM(I23:I24)","v":0},"y"]
[null,1,null,null,{"$f":"A22&\".\"&B23","v":"8.1.1"},null,"тыс руб"]
[null,null,null,null,null,"Добавить источники"]
[null,null,null,null,null,"Добавить год"]
[null,null,null,null,"9","Целевые показатели инвестиционной программы",null,"x","x"]
[null,null,null,null,"9.1","Срок окупаемости","лет","x","x"]
[null,null,null,null,"9.1.1","Факт","лет"]
[null,null,null,null,"9.1.2","План","лет"]
[null,null,null,null,"9.2","Перебои в снабжении потребителей","часов на потребителя","x","x"]
[null,null,null,null,"9.2.1","Факт","часов на потребителя"]
[null,null,null,null,"9.2.2","План","часов на потребителя"]
[null,null,null,null,"9.3","Продолжительность (бесперебойность) поставки товаров и услуг","час/день","x","x"]
[null,null,null,null,"9.3.1","Факт","час/день"]
[null,null,null,null,"9.3.2","План","час/день"]
[null,null,null,null,"9.4","Уровень потерь и неучтенного потребления","%","x","x"]
[null,null,null,null,"9.4.1","Факт","%"]
[null,null,null,null,"9.4.2","План","%"]
[null,null,null,null,"9.5","Коэффициент потерь","Гкал/км","x","x"]
[null,null,null,null,"9.5.1","Факт","Гкал/км"]
[null,null,null,null,"9.5.2","План","Гкал/км"]
[null,null,null,null,"9.6","Износ систем коммунальной инфраструктуры","%","x","x"]
[null,null,null,null,"9.6.1","Факт","%"]
[null,null,null,null,"9.6.2","План","%"]
[null,null,null,null,"9.7","Износ оборудования производства (котлы)","%","x","x"]
[null,null,null,null,"9.7.1","Факт","%"]
[null,null,null,null,"9.7.2","План","%"]
[null,null,null,null,"9.8","Износ оборудования передачи тепловой энергии (сети)","%","x","x"]
[null,null,null,null,"9.8.1","Факт","%"]
[null,null,null,null,"9.8.2","План","%"]
[null,null,null,null,"9.9","Удельный вес сетей, нуждающихся в замене","%","x","x"]
[null,null,null,null,"9.9.1","Факт","%"]
[null,null,null,null,"9.9.2","План","%"]
[null,null,null,null,"9.10","Обеспеченность потребления товаров и услуг приборами учета","%","x","x"]
[null,null,null,null,"9.10.1","Факт","%"]
[null,null,null,null,"9.10.2","План","%"]
[null,null,null,null,"9.11","Расход топлива на 1 Гкал","т усл.топл/Гкал","x","x"]
[null,null,null,null,"9.11.1","Факт","т усл.топл/Гкал"]
[null,null,null,null,"9.11.2","План","т усл.топл/Гкал"]
[null,null,null,null,"9.12","Расход электроэнергии на выработку 1 Гкал","кВт.ч/Гкал","x","x"]
[null,null,null,null,"9.12.1","Факт","кВт.ч/Гкал"]
[null,null,null,null,"9.12.2","План","кВт.ч/Гкал"]
[null,null,null,null,"9.13","Расход электроэнергии на передачу 1 Гкал","кВт.ч/Гкал","x","x"]
[null,null,null,null,"9.13.1","Факт","кВт.ч/Гкал"]
[null,null,null,null,"9.13.2","План","кВт.ч/Гкал"]
[null,null,null,null,"9.14","Количество аварий (с учетом котельных)","ед","x","x"]
[null,null,null,null,"9.14.1","Факт","ед"]
[null,null,null,null,"9.14.2","План","ед"]
[null,null,null,null,"9.15","Количество аварий на 1 км тепловых сетей","ед","x","x"]
[null,null,null,null,"9.15.1","Факт","ед"]
[null,null,null,null,"9.15.2","План","ед"]
[null,null,null,null,"9.16","Производительность труда на 1 человека","тыс руб/чел","x","x"]
[null,null,null,null,"9.16.1","Факт","тыс руб/чел"]
[null,null,null,null,"9.16.2","План","тыс руб/чел"]
["9.16",null,null,null,{"$f":"A75","v":"9.16"},null,null,"x","x"]
[null,null,null,null,{"$f":"A75&\".1\"","v":"9.16.1"},"Факт",{"$f":"IF(G75=\"\",\"x\",G75)","v":"x"}]
[null,null,null,null,{"$f":"A75&\".2\"","v":"9.16.2"},"План",{"$f":"IF(G75=\"\",\"x\",G75)","v":"x"}]
[null,null,null,null,null,"Добавить показатель"]
[null,null,null,null,"10","Использование инвестиционных средств за отчетный год","тыс руб","x","x"]
["10.0",null,null,null,{"$f":"A80","v":"10.0"},"Всего, в том числе по источникам финансирования:","тыс руб",{"$f":"SUM(I80:J80)","v":0},{"$f":"SUM(I81:I84)","v":0}]
[null,null,null,null,{"$f":"A80&\".1\"","v":"10.0.1"},"I квартал","тыс руб",{"$f":"SUM(I81:J81)","v":0},{"$f":"SUMIF($F$85:$F$95,$F81,I$85:I$95)","v":0}]
[null,null,null,null,{"$f":"A80&\".2\"","v":"10.0.2"},"II квартал","тыс руб",{"$f":"SUM(I82:J82)","v":0},{"$f":"SUMIF($F$85:$F$95,$F82,I$85:I$95)","v":0}]
[null,null,null,null,{"$f":"A80&\".3\"","v":"10.0.3"},"III квартал","тыс руб",{"$f":"SUM(I83:J83)","v":0},{"$f":"SUMIF($F$85:$F$95,$F83,I$85:I$95)","v":0}]
[null,null,null,null,{"$f":"A80&\".4\"","v":"10.0.4"},"IV квартал","тыс руб",{"$f":"SUM(I84:J84)","v":0},{"$f":"SUMIF($F$85:$F$95,$F84,I$85:I$95)","v":0}]
["10.0",null,null,null,{"$f":"A85","v":"10.0"},null,"тыс руб",{"$f":"SUM(H86:H89)","v":0},{"$f":"SUM(I86:I89)","v":0}]
[null,null,null,null,{"$f":"A85&\".1\"","v":"10.0.1"},"I квартал","тыс руб"]
[null,null,null,null,{"$f":"A85&\".2\"","v":"10.0.2"},"II квартал","тыс руб"]
[null,null,null,null,{"$f":"A85&\".3\"","v":"10.0.3"},"III квартал","тыс руб"]
[null,null,null,null,{"$f":"A85&\".4\"","v":"10.0.4"},"IV квартал","тыс руб"]
["10.1",null,null,null,{"$f":"A90","v":"10.1"},null,"тыс руб",{"$f":"SUM(H91:H94)","v":0},{"$f":"SUM(I91:I94)","v":0}]
[null,null,null,null,{"$f":"A90&\".1\"","v":"10.1.1"},"I квартал","тыс руб"]
[null,null,null,null,{"$f":"A90&\".2\"","v":"10.1.2"},"II квартал","тыс руб"]
[null,null,null,null,{"$f":"A90&\".3\"","v":"10.1.3"},"III квартал","тыс руб"]
[null,null,null,null,{"$f":"A90&\".4\"","v":"10.1.4"},"IV квартал","тыс руб"]
[null,null,null,null,null,"Добавить источники"]
[]
[null,null,null,null,"*","Раскрывается не позднее 30 дней со дня сдачи годового бухгалтерского баланса в налоговые органы."]

{"sheet":"Инвестиции исправления","index":9,"n_rows":13,"n_cols":6,"rows_kept":13,"cut":false,"hidden":true,"merged":[[4,3,4,5],[5,3,5,5],[12,4,12,5]]}
[]
[]
[]
[]
[null,null,null,"Внесение изменений в инвестиционную программу *"]
[null,null,null,{"$f":"IF(org=0,\"Не определено\",org)","v":"Филиал \"Калининградская ТЭЦ-2\" АО \"Интер РАО - Электрогенерация\""}]
[]
[null,null,null,"№ п/п","Дата внесения изменений","Внесенные изменения"]
[null,null,null,"1","2","3"]
[null,null,null,"0"]
[null,null,null,null,"Добавить строку"]
[]
[null,null,null,"*","Раскрывается регулируемой организацией в течение 10 календарных дней со дня принятия органом исполнительной власти субъекта Российской Федерации решения о внесении изменений в инвестиционную программу"]

{"sheet":"Ссылки на публикации","index":10,"n_rows":18,"n_cols":11,"rows_kept":18,"cut":false,"hidden":false,"merged":[[4,3,4,10],[5,3,5,10],[10,0,11,0],[10,4,10,10],[12,0,13,0],[12,4,12,10]]}
[]
[]
[]
[]
[null,null,null,"Ссылки на публикации"]
[null,null,null,{"$f":"IF(org=0,\"Не определено\",org)","v":"Филиал \"Калининградская ТЭЦ-2\" АО \"Интер РАО - Электрогенерация\""}]
[]
[]
[null,null,null,"№ п/п","Содержание","Наименование источника публикации","Дата размещения информации","Номер печатного издания","Дата печатного издания","Ссылка на PDF копии издания","Адрес страницы официального сайта организации в сети интернет, на которой размещена раскрываемая информация"]
[null,null,null,"1","2","3","4","5","6","7","8"]
["1",null,null,{"$f":"A11","v":"1"},"Информация об основных показателях финансово-хозяйственной деятельности регулируемой организации, включая структуру основных производственных затрат (в части регулируемой деятельности) (п.19 Постановления Правительства Российской Федерации от 05 июля 2013 г. N 570 \"О стандартах раскрытия информации теплоснабжающими, теплосетевыми организациями и органами регулирования\")"]
[null,null,null,{"$f":"A11&\".1\"","v":"1.1"},"Сайт организации в сети Интернет","Сайт ОАО \"Интер РАО-Электрогенерация\"","18.03.2016","x","x","x","http://www.irao-generation.ru/information/rasinf_gen/raskinf_te2012/kaliningrad2/"]
["2",null,null,{"$f":"A13","v":"2"},"Информация об основных потребительских характеристиках регулируемых товаров и услуг, оказываемых регулируемой организацией (п.20  Постановления Правительства Российской Федерации от 05 июля 2013 г. N 570 \"О стандартах раскрытия информации теплоснабжающими, теплосетевыми организациями и органами регулирования\")"]
[null,null,null,{"$f":"A13&\".1\"","v":"2.1"},"Сайт организации в сети Интернет","Сайт ОАО \"Интер РАО-Электрогенерация\"","18.03.2016","x","x","x","http://www.irao-generation.ru/information/rasinf_gen/raskinf_te2012/kaliningrad2/"]
[null,null,null,{"$f":"A13&\".2\"","v":"2.2"},"Печатное издание",null,null,null,null,null,"x"]
[]
[]
[null,null,null,null,"Добавить"]

{"sheet":"Комментарии","index":11,"n_rows":13,"n_cols":5,"rows_kept":13,"cut":false,"hidden":false,"merged":[[6,3,6,4],[7,3,7,4]]}
[]
[]
[]
[]
[]
[]
[null,null,null,"Комментарии"]
[null,null,null,{"$f":"IF(org=0,\"Не определено\",org)","v":"Филиал \"Калининградская ТЭЦ-2\" АО \"Интер РАО - Электрогенерация\""}]
[]
[null,null,null,"№ п/п","Комментарий"]
[null,null,null,"1","2"]
[null,null,null,0]
[null,null,null,null,"Добавить"]

{"sheet":"Проверка","index":12,"n_rows":4,"n_cols":5,"rows_kept":4,"cut":false,"hidden":false,"merged":[[1,1,1,4]]}
[]
[null,"Результат проверки"]
[]
[null,"Ссылка1","Ссылка2","Причина","Статус"]

{"sheet":"AllSheetsInThisWorkbook","index":13,"n_rows":30,"n_cols":2,"rows_kept":30,"cut":false,"hidden":true,"merged":[]}
["Расчетные листы","Скрытые листы"]
["Инструкция","modList01"]
["Лог обновления","AllSheetsInThisWorkbook"]
["Титульный","TEHSHEET"]
["Список МО","et_union_hor"]
["Показатели (факт)","et_union_vert"]
["Показатели (2)","modInfo"]
["Потр. характеристики","modRegion"]
["Инвестиции","modReestr"]
["Инвестиции исправления","modfrmSelectData"]
["Ссылки на публикации","modfrmReestr"]
["Комментарии","modUpdTemplMain"]
["Проверка","REESTR_ORG"]
[null,"modClassifierValidate"]
[null,"modProv"]
[null,"modHyp"]
[null,"modList00"]
[null,"modList02"]
[null,"modList03"]
[null,"modList04"]
[null,"modList05"]
[null,"modList06"]
[null,"modList07"]
[null,"modfrmDateChoose"]
[null,"modComm"]
[null,"modThisWorkbook"]
[null,"REESTR_MO"]
[null,"modfrmReestrMR"]
[null,"modfrmCheckUpdates"]
[null,"CopyList"]

{"sheet":"TEHSHEET","index":14,"n_rows":85,"n_cols":20,"rows_kept":85,"cut":false,"hidden":true,"merged":[[0,12,0,13],[0,16,0,17]]}
["REGION","Список с видами деятельности",null,"year_list","logical","Месяц\n(MONTH)","Квартал\n(QUARTER)","Месяц\n(kind_of_publication)","Режим налогообложения\n/kind_of_NDS/","Вид деятельности, на которую установлен тариф /kind_of_activity/","Вид услуги, на которую установлен тариф /kind_of_service_WARM/","Номер СЦХВ(СЦВО)\n/SKI_number/","Виды топлива\n/kind_of_fuels/",null,"цель инвестиционной программы /kind_of_purchase_method/","Источники финансирования\n/source_of_funding/","цель инвестиционной программы /objective_of_IPR/",null,null,"Рабочие диапазоны"]
["Алтайский край","kind_of_activity_03",null,2013,"да","январь","I квартал","На официальном сайте организации","общий","kind_of_activity_01","Производство","1","газ природный по регулируемой цене","тыс м3","торги/аукционы","кредиты банков","автоматизация (с уменьшением штата)",false,null,true]
["Амурская область",null,null,2014,"нет","февраль","II квартал","На сайте регулирующего органа","общий с учетом освобождения от уплаты НДС","производство тепловой энергии (мощности) в режиме комбинированной выработки электрической и тепловой энергии источниками тепловой энергии с установленной генерирующей мощностью производства электрической энергии 25 МВт и более","Передача","2","газ природный по нерегулируемой цене","тыс м3","прямые договора без торгов","кредиты иностранных банков","уменьшение удельных затрат (повышение КПД)",false]
["Архангельская область",null,null,2015,null,"март","III квартал",null,"специальный (упрощенная система налогообложения, система налогообложения для сельскохозяйственных товаропроизводителей)","производство тепловой энергии (мощности) в режиме комбинированной выработки электрической и тепловой энергии источниками тепловой энергии с установленной генерирующей мощностью производства электрической энергии менее 25 МВт","Сбыт","3","газ сжиженный","кг","прочее","заемные ср-ва др. организаций","уменьшение издержек на производство",false]
["Астраханская область",null,null,2016,"logical_two","апрель","IV квартал",null,null,"производство тепловой энергии (мощности) не в режиме комбинированной выработки электрической и тепловой энергии источниками тепловой энергии",null,"4","газовый конденсат","тонны",null,"федеральный бюджет","снижение аварийности",false]
["Белгородская область",null,null,2017,"есть","май",null,null,"НДС для общего режима налогообложения\n/kind_of_NDS_tariff/","производство теплоносителя",null,"5","гшз","тонны",null,"бюджет субъекта РФ","прочее",false]
["Брянская область",null,null,null,"отсутствует","июнь",null,null,"тариф указан с НДС для плательщиков НДС","передача тепловой энергии",null,"6","мазут","тонны",null,"бюджет муниципального образования"]
["Владимирская область",null,null,null,null,"июль",null,null,"тариф указан без НДС для плательщиков НДС","передача теплоносителя",null,"7","нефть","тонны",null,"ср-ва внебюджетных фондов"]
["Волгоградская область",null,null,null,null,"август",null,null,null,"сбыт тепловой энергии",null,"8","дизельное топливо","тонны",null,"прибыль, направляемая на инвестиции"]
["Вологодская область",null,null,null,null,"сентябрь",null,null,"НДС для прочих режимов налогообложения\n/kind_of_NDS_tariff_etc/","сбыт теплоносителя",null,"9","уголь бурый","тонны",null,"амортизация"]
["Воронежская область",null,null,null,null,"октябрь",null,null,"тариф для организаций не являющихся плательщиками НДС","подключение к системе теплоснабжения",null,"10","уголь каменный","тонны",null,"инвестиционная надбавка к тарифу"]
["г.Байконур",null,null,null,null,"ноябрь",null,null,null,"поддержание резервной тепловой мощности при отсутствии потребления тепловой энергии",null,"11","торф","тонны",null,"плата за подключение"]
["г. Москва",null,null,null,null,"декабрь",null,null,null,null,null,"12","дрова","м3",null,"прочие средства"]
["г.Санкт-Петербург",null,null,null,null,null,null,null,null,"kind_of_activity_02",null,"13","опил","м3"]
["Еврейская автономная область",null,null,null,null,null,null,null,null,"производство тепловой энергии (мощности) в режиме комбинированной выработки электрической и тепловой энергии источниками тепловой энергии с установленной генерирующей мощностью производства электрической энергии 25 МВт и более",null,"14","отходы березовые","м3"]
["Забайкальский край",null,null,null,null,null,null,null,null,"производство тепловой энергии (мощности) в режиме комбинированной выработки электрической и тепловой энергии источниками тепловой энергии с установленной генерирующей мощностью производства электрической энергии менее 25 МВт",null,"15","отходы осиновые","м3"]
["Ивановская область",null,null,null,null,null,null,null,null,"производство тепловой энергии (мощности) не в режиме комбинированной выработки электрической и тепловой энергии источниками тепловой энергии",null,"16","печное топливо","тонны"]
["Иркутская область",null,null,null,null,null,null,null,null,"производство теплоносителя",null,"17","пилеты","тонны"]
["Кабардино-Балкарская республика",null,null,null,null,null,null,null,null,"передача тепловой энергии",null,"18","смола","тонны"]
["Калининградская область",null,null,null,null,null,null,null,null,"передача теплоносителя",null,"19","щепа","м3"]
["Калужская область",null,null,null,null,null,null,null,null,"сбыт тепловой энергии",null,"20","горючий сланец","тонны"]
["Камчатский край",null,null,null,null,null,null,null,null,"сбыт теплоносителя",null,null,"керосин","тонны"]
["Карачаево-Черкесская республика",null,null,null,null,null,null,null,null,"подключение к системе теплоснабжения",null,null,"кислородно-водородная смесь","тыс м3"]
["Кемеровская область",null,null,null,null,null,null,null,null,"поддержание резервной тепловой мощности при отсутствии потребления тепловой энергии",null,null,"электроэнергия (НН)","тыс кВт.ч"]
["Кировская область",null,null,null,null,null,null,null,null,"смешанное производство",null,null,"электроэнергия (СН1)","тыс кВт.ч"]
["Костромская область",null,null,null,null,null,null,null,null,"нет производства",null,null,"электроэнергия (СН2)","тыс кВт.ч"]
["Краснодарский край","kind_of_activity_03",null,null,null,null,null,null,null,null,null,null,"электроэнергия (ВН)","тыс кВт.ч"]
["Красноярский край",null,null,null,null,null,null,null,null,"kind_of_activity_03",null,null,"мощность","тыс кВт"]
["Курганская область",null,null,null,null,null,null,null,null,"производство тепловой энергии (мощности) в режиме комбинированной выработки электрической и тепловой энергии источниками тепловой энергии с установленной генерирующей мощностью производства электрической энергии 25 МВт и более",null,null,"прочее"]
["Курская область",null,null,null,null,null,null,null,null,"производство тепловой энергии (мощности) в режиме комбинированной выработки электрической и тепловой энергии источниками тепловой энергии с установленной генерирующей мощностью производства электрической энергии менее 25 МВт"]
["Ленинградская область",null,null,null,null,null,null,null,null,"производство тепловой энергии (мощности) не в режиме комбинированной выработки электрической и тепловой энергии источниками тепловой энергии"]
["Липецкая область",null,null,null,null,null,null,null,null,"производство теплоносителя"]
["Магаданская область",null,null,null,null,null,null,null,null,"передача тепловой энергии и теплоносителя"]
["Московская область",null,null,null,null,null,null,null,null,"сбыт тепловой энергии и теплоносителя"]
["Мурманская область",null,null,null,null,null,null,null,null,"подключение к системе теплоснабжения"]
["Ненецкий автономный округ",null,null,null,null,null,null,null,null,"поддержание резервной тепловой мощности при отсутствии потребления тепловой энергии"]
["Нижегородская область",null,null,null,null,null,null,null,null,"смешанное производство"]
["Новгородская область",null,null,null,null,null,null,null,null,"нет производства"]
["Новосибирская область"]
["Омская область","kind_of_activity_02",null,null,null,null,null,null,null,"kind_of_activity_04"]
["Оренбургская область",null,null,null,null,null,null,null,null,"комбинированная выработка"]
["Орловская область",null,null,null,null,null,null,null,null,"некомбинированная выработка"]
["Пензенская область",null,null,null,null,null,null,null,null,"смешанное пр-во"]
["Пермский край",null,null,null,null,null,null,null,null,"передача"]
["Приморский край",null,null,null,null,null,null,null,null,"сбыт"]
["Псковская область",null,null,null,null,null,null,null,null,"производство (некомбинированная выработка)+сбыт"]
["Республика Адыгея",null,null,null,null,null,null,null,null,"передача+сбыт"]
["Республика Алтай",null,null,null,null,null,null,null,null,"производство (комбинированная выработка)+сбыт"]
["Республика Башкортостан",null,null,null,null,null,null,null,null,"производство (некомбинированная выработка)+передача"]
["Республика Бурятия","kind_of_activity_04",null,null,null,null,null,null,null,"производство (комбинированная выработка)+передача"]
["Республика Дагестан",null,null,null,null,null,null,null,null,"смешанное производство+сбыт"]
["Республика Ингушетия",null,null,null,null,null,null,null,null,"смешанное производство+передача"]
["Республика Калмыкия"]
["Республика Карелия",null,null,null,null,null,null,null,null,"kind_of_activity_05"]
["Республика Коми",null,null,null,null,null,null,null,null,"производство тепловой энергии (мощности) в режиме комбинированной выработки электрической и тепловой энергии источниками тепловой энергии с установленной генерирующей мощностью производства электрической энергии 25 МВт и более"]
["Республика Марий Эл",null,null,null,null,null,null,null,null,"производство тепловой энергии (мощности) в режиме комбинированной выработки электрической и тепловой энергии источниками тепловой энергии с установленной генерирующей мощностью производства электрической энергии менее 25 МВт"]
["Республика Мордовия",null,null,null,null,null,null,null,null,"производство тепловой энергии (мощности) не в режиме комбинированной выработки электрической и тепловой энергии источниками тепловой энергии"]
["Республика Саха (Якутия)",null,null,null,null,null,null,null,null,"производство теплоносителя"]
["Республика Северная Осетия-Алания",null,null,null,null,null,null,null,null,"передача тепловой энергии и теплоносителя"]
["Республика Татарстан",null,null,null,null,null,null,null,null,"сбыт тепловой энергии и теплоносителя"]
["Республика Тыва",null,null,null,null,null,null,null,null,"подключение к системе теплоснабжения"]
["Республика Хакасия",null,null,null,null,null,null,null,null,"поддержание резервной тепловой мощности при отсутствии потребления тепловой энергии"]
["Ростовская область"]
["Рязанская область"]
["Самарская область"]
["Саратовская область"]
["Сахалинская область"]
["Свердловская область"]
["Смоленская область"]
["Ставропольский край"]
["Тамбовская область"]
["Тверская область"]
["Томская область"]
["Тульская область"]
["Тюменская область"]
["Удмуртская республика"]
["Ульяновская область","kind_of_activity_02"]
["Хабаровский край"]
["Ханты-Мансийский автономный округ","kind_of_activity_01"]
["Челябинская область"]
["Чеченская республика"]
["Чувашская республика"]
["Чукотский автономный округ"]
["Ямало-Ненецкий автономный округ"]
["Ярославская область"]

{"sheet":"et_union_hor","index":15,"n_rows":61,"n_cols":16,"rows_kept":61,"cut":false,"hidden":true,"merged":[[55,8,56,8],[3,4,4,4],[3,3,4,3],[54,3,57,3],[54,4,57,4],[55,6,56,6],[55,7,56,7],[23,0,24,0],[23,4,23,10],[15,4,15,10],[33,0,37,0],[15,0,17,0]]}
[]
["et_List01","et_List01_1"]
[]
[null,null,null,null,null,1]
[null,null,null,null,null,null,"Добавить МО"]
[]
[]
["et_Comm"]
[]
[]
[]
[]
["et_List03"]
[]
[]
["4",null,null,{"$f":"A16","v":"4"}]
[null,null,null,{"$f":"A16&\".1\"","v":"4.1"},"Сайт организации в сети Интернет",null,null,"x","x","x"]
[null,null,null,{"$f":"A16&\".2\"","v":"4.2"},"Печатное издание",null,"",null,null,null,"x"]
[]
[]
[]
["edit_List03_ipr_pub"]
[]
["3",null,null,{"$f":"A24","v":"3"},"Информация об инвестиционных программах регулируемой организации (п.21 Постановления Правительства Российской Федерации от 05 июля 2013 г. N 570 \"О стандартах раскрытия информации теплоснабжающими, теплосетевыми организациями и органами регулирования\")"]
[null,null,null,{"$f":"A24&\".1\"","v":"3.1"},"Сайт организации в сети Интернет",null,null,"x","x","x"]
[]
[]
["et_List02_1"]
[]
[null,null,null,null,null,"тыс руб"]
[]
["et_List02_2"]
[]
[null,null,null,{"$f":"A34","v":0},null,"x",{"$f":"G35*G36+G37","v":0},"p"]
[null,null,null,{"$f":"A34&\".1\"","v":".1"},"Объем"]
[null,null,null,{"$f":"A34&\".2\"","v":".2"},"Стоимость за единицу объема","тыс руб"]
[null,null,null,{"$f":"A34&\".3\"","v":".3"},"Стоимость доставки","тыс руб"]
[null,null,null,{"$f":"A34&\".4\"","v":".4"},"Способ приобретения","x"]
[]
["et_List02_3"]
[]
[null,null,null,null,null,"Гкал/ч"]
[]
["et_List02_4"]
[]
[null,null,null,null,null,"кг усл. топл/Гкал"]
[]
["et_List02_5"]
[]
[null,null,null,null,null,"тыс руб"]
[]
[]
["et_List04_1","et_List04_2","et_List04_3"]
[]
[null,null,null,"1",null,null,null,"Итого по поставщику",null,null,null,null,null,null,{"$f":"SUM(O56:O58)","v":0},{"$f":"nerr(O55/List02_costs_OPS)*100","v":0}]
[null,null,null,null,null,null,"1",null,null,null,"1"]
[null,null,null,null,null,null,null,null,null,null,null,"Добавить товар/услугу"]
[null,null,null,null,null,null,null,"Добавить способ"]
[]
[]
["et_List07_1"]

{"sheet":"et_union_vert","index":16,"n_rows":0,"n_cols":0,"rows_kept":0,"cut":false,"hidden":true,"merged":[]}

{"sheet":"modInfo","index":17,"n_rows":17,"n_cols":2,"rows_kept":17,"cut":false,"hidden":true,"merged":[]}
[null,"Титульный"]
[null,"Для выбора того или иного источника публикации выполните двойной щелчок по синей ячейке напротив соответствующего источника.\nВНИМАНИЕ! Если Вы снимаете галочку с пункта, то будут скрыты и очищены соответствующие строки на листе \"Ссылки на публикации\"!\n\nОпубликование перечисленных в шаблоне показателей на сайте организации в сети Интернет и в печатных изданиях не обязательно, если данный шаблон предоставлен по системе ЕИАС (региональный сегмент)."]
[null,"Обязательное опубликование на официальном сайте органа исполнительной власти субъекта Российской Федерации в области государственного регулирования цен (тарифов), и (или) на официальном сайте органа местного самоуправления поселения или городского округа в случае их наделения в соответствии с законом субъекта Российской Федерации полномочиями по государственному регулированию цен (тарифов) предусмотрено пунктом 3 (а) постановления Правительства N 570 от 05.07.2013"]
[null,"Задайте период регулирования, выбрав даты начала и окончания очередного периода регулирования из календаря (иконка справа от указанной ячейки), либо введите дату непосредственно в ячейку в формате - 'ДД.ММ.ГГГГ'"]
[null,"Шаблон заполняется раздельно по каждому виду тарифа"]
[null,"В зависимости от указанного вида деятельности будут доступны для заполнения поля 'Производство', 'Передача' и 'Сбыт'"]
[null,"Ссылки на публикации"]
[null,"Вводите адрес сайта, не нарушая цвет ячейки /если копируете гиперссылку из браузера, то выполните двойной щелчок по ячейке и только после этого можете вставить скопированный элемент/"]
[null,"Материалы (документы) необходимо загружать с помощью \"ЕИАС Мониторинг\". Ссылка на инструкцию по загрузке материалов (документов) расположена на листе 'Инструкция' в п.'Методология заполнения'.\n\nВвводите ссылку, не нарушая цвет ячейки /если копируете гиперссылку из браузера, то выполните двойной щелчок по ячейке и только после этого можете вставить скопированный элемент/."]
[null,"Если для какого-либо пункта графы 'Наименование источника (сайта или печатного издания)' информация не раскрывалась, то в соответствующем поле укажите - 'не раскрывалась'"]
[null,"Список МО"]
[null,"В случае, если тариф не дифференцируется по системам теплоснабжения, перечислите все муниципальные районы, в которых организация осуществляет услуги по передаче тепловой энергии"]
[null,"В случае, если тариф не дифференцируется по системам теплоснабжения, перечислите все муниципальные образования, в которых организация осуществляет услуги по передаче тепловой энергии"]
[null,"Признак дифференциации тарифа"]
[null,"В случае, если тариф не дифференцируется по системам теплоснабжения, укажите '1'. Введите значение от 1 до 100, чтобы указать очередной условный порядковый номер системы теплоснабжения"]
[null,"Потр. Характеристики"]
[null,"Документы необходимо загружать с помощью \"ЕИАС Мониторинг\". Ссылка на инструкцию по загрузке документов расположена на листе 'Инструкция' в п.'Методология заполнения'.\n\nВвводите ссылку, не нарушая цвет ячейки /если копируете гиперссылку из браузера, то выполните двойной щелчок по ячейке и только после этого можете вставить скопированный элемент/."]

{"sheet":"modRegion","index":18,"n_rows":0,"n_cols":0,"rows_kept":0,"cut":false,"hidden":true,"merged":[]}

{"sheet":"modReestr","index":19,"n_rows":0,"n_cols":0,"rows_kept":0,"cut":false,"hidden":true,"merged":[]}

{"sheet":"modfrmSelectData","index":20,"n_rows":0,"n_cols":0,"rows_kept":0,"cut":false,"hidden":true,"merged":[]}

{"sheet":"modfrmReestr","index":21,"n_rows":0,"n_cols":0,"rows_kept":0,"cut":false,"hidden":true,"merged":[]}

{"sheet":"modUpdTemplMain","index":22,"n_rows":0,"n_cols":0,"rows_kept":0,"cut":false,"hidden":true,"merged":[]}

{"sheet":"REESTR_ORG","index":23,"n_rows":125,"n_cols":12,"rows_kept":125,"cut":false,"hidden":true,"merged":[]}
["№","NSRF","MR_NAME","OKTMO_MR_NAME","MO_NAME","OKTMO_NAME","RST_ORG_ID","ORG_NAME","INN_NAME","KPP_NAME","VDET_NAME"]
[1,"Калининградская область","Городской округ город Калининград","27701000","Городской округ город Калининград","27701000","27524895","АО \"РЭУ\" филиал \"Калининградский\"","7714783092","390643001","производство (некомбинированная выработка)+передача+сбыт","WARM"]
[2,"Калининградская область","Городской округ Озерский","27716000","Городской округ Озерский","27716000","28799376","Администрация МО «Гавриловское сельское поселение»","3921999462","392101001","","WARM"]
[3,"Калининградская область","Городской округ Гурьевский","27707000","Городской округ Гурьевский","27707000","26848622","ЗАО \"Зверохозяйство \"Гурьевское\"","3917000293","391701001","производство (некомбинированная выработка)+передача+сбыт","WARM"]
[4,"Калининградская область","Городской округ Ладушкинский","27711000","Городской округ Ладушкинский","27711000","26778834","ЗАО \"Ладушкинское\"","3915000805","391501001","производство (некомбинированная выработка)+передача+сбыт","WARM"]
[5,"Калининградская область","Полесский муниципальный район","27630000","Полесское городское поселение","27630101","27903202","ЗАО \"РИНЭК\"","3922501030","392101001","производство (некомбинированная выработка)+передача+сбыт","WARM"]
[6,"Калининградская область","Городской округ город Калининград","27701000","Городской округ город Калининград","27701000","26638847","Калининградская дирекция по эксплуатации зданий и сооружений филиалы ОАО \"РЖД\"","7708503727","392545205","производство (некомбинированная выработка)+передача+сбыт","WARM"]
[7,"Калининградская область","Багратионовский муниципальный район","27603000","Нивенское сельское поселение","27603406","27301178","Калининградская экспедиция ООО \"Буровая компания \"Евразия\"","8608049090","390645001","производство (некомбинированная выработка)+передача+сбыт","WARM"]
[8,"Калининградская область","Городской округ город Калининград","27701000","Городской округ город Калининград","27701000","26356732","МАОУ СОШ № 46 с УИОП","3908015230","390601001","производство (некомбинированная выработка)+передача+сбыт","WARM"]
[9,"Калининградская область","Городской округ Зеленоградский","27710000","Городской округ Зеленоградский","27710000","26372552","МКП \"Благоустройство\"","3918028012","391801001","производство (некомбинированная выработка)+передача+сбыт","WARM"]
[10,"Калининградская область","Светлогорский муниципальный район","27634000","поселок Донское","27634102","26546816","МКП \"Водоканал Донское\" МО \"Поселок Донское\"","3912501867","391201001","производство (некомбинированная выработка)+передача+сбыт","WARM"]
[11,"Калининградская область","Багратионовский муниципальный район","27603000","Багратионовское городское поселение","27603101","30359482","МКП \"КС Г. БАГРАТИОНОВСКА\"","3915006589","391501001","Передача+Сбыт","WARM"]
[12,"Калининградская область","Светлогорский муниципальный район","27634000","город Светлогорск","27634101","28752025","МКУ «Управление ЖКХ администрации Светлогорского района»","3912008387","391201001","","WARM"]
[13,"Калининградская область","Полесский муниципальный район","27630000","Тургеневское сельское поселение","27630408","26411361","МКУП \"Тюленинское ЖКХ\"","3922006974","392201001","производство (некомбинированная выработка)+передача+сбыт","WARM"]
[14,"Калининградская область","Городской округ город Калининград","27701000","Городской округ город Калининград","27701000","26639672","МП \"Калининградтеплосеть\"","3903003375","390601001","производство (некомбинированная выработка)+передача+сбыт","WARM"]
[15,"Калининградская область","Городской округ Советский","27730000","Городской округ Советский","27730000","26356739","МП \"Советсктеплосети\"","3911001036","391101001","производство комбинированная выработка","WARM"]
[16,"Калининградская область","Городской округ Советский","27730000","Городской округ Советский","27730000","26356739","МП \"Советсктеплосети\"","3911001036","391101001","Передача+Сбыт","WARM"]
[17,"Калининградская область","Багратионовский муниципальный район","27603000","Долгоруковское сельское поселение","27603404","26372533","МП ЖКХ пос.Долгоруково","3915004670","391501001","производство (некомбинированная выработка)+передача+сбыт","WARM"]
[18,"Калининградская область","Городской округ Ладушкинский","27711000","Городской округ Ладушкинский","27711000","26356753","МП ЖКЭК МО \"Ладушкинский городской округ\"","3915446519","391501001","производство (некомбинированная выработка)+передача+сбыт","WARM"]
[19,"Калининградская область","Багратионовский муниципальный район","27603000","Долгоруковское сельское поселение","27603404","28867571","МУП \"АПК Долгоруково\"","3915504104","391501001","производство (некомбинированная выработка)+передача+сбыт","WARM"]
[20,"Калининградская область","Балтийский муниципальный район","27605000","Балтийское городское поселение","27605101","26356706","МУП \"Балтийские объединенные коммунальные системы\"","3901003637","390101001","производство (некомбинированная выработка)","WARM"]
[21,"Калининградская область","Городской округ Славский","27727000","Городской округ Славский","27727000","26356773","МУП \"Ваш город\"","3924003640","392401001","производство (некомбинированная выработка)+передача+сбыт","WARM"]
[22,"Калининградская область","Полесский муниципальный район","27630000","Полесское городское поселение","27630101","28005714","МУП \"Водоканал\"","3922502274","392201001","производство (некомбинированная выработка)+передача+сбыт","WARM"]
[23,"Калининградская область","Багратионовский муниципальный район","27603000","Нивенское сельское поселение","27603406","26824101","МУП \"Водоканал-Теплосеть\"","3917509250","391501001","производство (некомбинированная выработка)+передача+сбыт","WARM"]
[24,"Калининградская область","Городской округ Гусевский","27709000","Городской округ Гусевский","27709000","26356709","МУП \"Гусевтеплосеть\" МО \"Гусевское городское поселение\"","3902000269","390201001","Передача+Сбыт","WARM"]
[25,"Калининградская область","Багратионовский муниципальный район","27603000","Багратионовское городское поселение","27603101","27978115","МУП \"ЖКС\" г. Багратионовска","3915500974","391501001","производство (некомбинированная выработка)+передача+сбыт","WARM"]
[26,"Калининградская область","Городской округ Зеленоградский","27710000","Городской округ Зеленоградский","27710000","26372553","МУП \"ЖКХ \"Ковровского сельского поселения\"","3918028037","391801001","производство (некомбинированная выработка)+передача+сбыт","WARM"]
[27,"Калининградская область","Городской округ Зеленоградский","27710000","Городской округ Зеленоградский","27710000","28977660","МУП \"ЖКХ Зеленоградского района\"","3918011322","391801001","производство (некомбинированная выработка)+передача+сбыт","WARM"]
[28,"Калининградская область","Багратионовский муниципальный район","27603000","Багратионовское городское поселение","27603101","26356755","МУП \"ЖКХ г. Багратионовска\"","3915008642","391501001","производство (некомбинированная выработка)+передача+сбыт","WARM"]
[29,"Калининградская область","Багратионовский муниципальный район","27603000","Гвардейское сельское поселение","27603402","28829647","МУП \"ЖКХ пос. Гвардейское\"","3915505429","391501001","производство (некомбинированная выработка)+передача+сбыт","WARM"]
[30,"Калининградская область","Багратионовский муниципальный район","27603000","Гвардейское сельское поселение","27603402","26372539","МУП \"ЖКХ пос. Славяновка\"","3915452128","391501001","Передача+Сбыт","WARM"]
[31,"Калининградская область","Городской округ Гвардейский","27706000","Городской округ Гвардейский","27706000","26407592","МУП \"ЖКХ\" МО \"Озерковское сельское поселение\"","3916500857","391601001","производство (некомбинированная выработка)+передача+сбыт","WARM"]
[32,"Калининградская область","Черняховский муниципальный район","27639000","Каменское сельское поселение","27639404","28463150","МУП \"Каменский комхоз\"","3914803334","391401001","производство (некомбинированная выработка)+передача+сбыт","WARM"]
[33,"Калининградская область","Полесский муниципальный район","27630000","Залесовское сельское поселение","27630404","27773561","МУП \"Коммунальщик\"","3922501873","392201001","производство (некомбинированная выработка)+передача+сбыт","WARM"]
[34,"Калининградская область","Городской округ Краснознаменский","27713000","Городской округ Краснознаменский","27713000","28869172","МУП \"Комплекс сервис\"","3919003405","391901001","производство (некомбинированная выработка)+передача+сбыт","WARM"]
[35,"Калининградская область","Городской округ Зеленоградский","27710000","Городской округ Зеленоградский","27710000","26356765","МУП \"МКХ п. Колосовка\"","3918028083","391801001","производство (некомбинированная выработка)+передача+сбыт","WARM"]
[36,"Калининградская область","Нестеровский муниципальный район","27624000","Нестеровское городское поселение","27624101","26356768","МУП \"Нестеров -Транзит\"","3920005693","392001001","производство (некомбинированная выработка)+передача+сбыт","WARM"]
[37,"Калининградская область","Городской округ Правдинский","27719000","Городской округ Правдинский","27719000","26356772","МУП \"Правдинское ЖЭУ\"","3923003398","392301001","производство (некомбинированная выработка)+передача+сбыт","WARM"]
[38,"Калининградская область","Балтийский муниципальный район","27605000","Приморское городское поселение","27605102","27511742","МУП \"Приморский берег\"","3901501791","390101001","производство (некомбинированная выработка)+передача+сбыт","WARM"]
[39,"Калининградская область","Городской округ Славский","27727000","Городской округ Славский","27727000","26372572","МУП \"Прохладненское\"","3924003778","392401001","производство (некомбинированная выработка)+передача+сбыт","WARM"]
[40,"Калининградская область","Светлогорский муниципальный район","27634000","город Светлогорск","27634101","26372524","МУП \"Светлогорскмежрайводоканал\"","3912001448","391201001","производство (некомбинированная выработка)+передача+сбыт","WARM"]
[41,"Калининградская область","Черняховский муниципальный район","27639000","Свободненское сельское поселение","27639406","28454486","МУП \"Свободненское жилищно-коммунальное хозяйство\"","3914803253","391401001","Передача+Сбыт","WARM"]
[42,"Калининградская область","Балтийский муниципальный район","27605000","Балтийское городское поселение","27605101","27639093","МУП \"Тепловые сети г. Балтийска\"","3901501953","390101001","производство (некомбинированная выработка)+передача+сбыт","WARM"]
[43,"Калининградская область","Городской округ Правдинский","27719000","Городской округ Правдинский","27719000","27971483","МУП \"Тепловые сети пгт.Железнодорожный\"","3923501555","392301001","производство (некомбинированная выработка)+сбыт","WARM"]
[44,"Калининградская область","Городской округ Пионерский","27717000","Городской округ Пионерский","27717000","30351812","МУП \"Теплосеть\" ПГО","3910005013","391001001","производство (некомбинированная выработка)+передача","WARM"]
[45,"Калининградская область","Городской округ Славский","27727000","Городской округ Славский","27727000","28829632","МУП \"Теплоснабжение\"","3924800702","392401001","производство (некомбинированная выработка)+передача+сбыт","WARM"]
[46,"Калининградская область","Городской округ Гвардейский","27706000","Городской округ Гвардейский","27706000","28424096","МУП \"Теплота\"","3916503858","391601001","производство (некомбинированная выработка)+передача+сбыт","WARM"]
[47,"Калининградская область","Черняховский муниципальный район","27639000","Черняховское городское поселение","27639101","26356751","МУП \"Теплоэнергетика\"","3914111855","391401001","производство (некомбинированная выработка)+передача+сбыт","WARM"]
[48,"Калининградская область","Нестеровский муниципальный район","27624000","Пригородное сельское поселение","27624404","27566160","МУП \"Теплоэнергетика\" МО \"Пригородное сельское поселение\"","3920800204","392001001","производство (некомбинированная выработка)+передача+сбыт","WARM"]
[49,"Калининградская область","Светлогорский муниципальный район","27634000","город Светлогорск","27634101","26356741","МУП \"Теплоэнергосистемы\"","3912004897","391201001","производство (некомбинированная выработка)+передача+сбыт","WARM"]
[50,"Калининградская область","Черняховский муниципальный район","27639000","Свободненское сельское поселение","27639406","26502288","МУП \"УЖКХ Свободненского сельского поселения\"","3914018817","391401001","производство (некомбинированная выработка)+передача+сбыт","WARM"]
[51,"Калининградская область","Городской округ Озерский","27716000","Городской округ Озерский","27716000","26839020","МУП \"Управляющая компания г. Озерска\"","3921004029","392101001","производство (некомбинированная выработка)+передача+сбыт","WARM"]
[52,"Калининградская область","Городской округ Янтарный","27740000","Городской округ Янтарный","27740000","28454920","МУП \"ЭО-Янтарный\"","3912503800","391201001","производство (некомбинированная выработка)","WARM"]
[53,"Калининградская область","Городской округ Гвардейский","27706000","Городской округ Гвардейский","27706000","28424126","МУП \"Энергетик\"","3916503671","391601001","производство (некомбинированная выработка)+передача+сбыт","WARM"]
[54,"Калининградская область","Полесский муниципальный район","27630000","Полесское городское поселение","27630101","28546809","МУП «Полесское»","3922502997","392201001","производство (некомбинированная выработка)+передача+сбыт","WARM"]
[55,"Калининградская область","Багратионовский муниципальный район","27603000","Пограничное сельское поселение","27603408","30372012","МУП ЖКС \"Пограничный\"","3915011363","391501001","производство (некомбинированная выработка)+передача+сбыт","WARM"]
[56,"Калининградская область","Городской округ Гурьевский","27707000","Городской округ Гурьевский","27707000","26356760","МУП ЖКХ \"Коммунальник\"","3917000720","391701001","производство (некомбинированная выработка)+передача+сбыт","WARM"]
[57,"Калининградская область","Багратионовский муниципальный район","27603000","Пограничное сельское поселение","27603408","26372534","МУП ЖКХ \"Пограничное\"","3915004976","391501001","производство (некомбинированная выработка)+передача+сбыт","WARM"]
[58,"Калининградская область","Городской округ Озерский","27716000","Городской округ Озерский","27716000","28872329","МУП Озерская управляющая компания","3921799865","392101001","производство (некомбинированная выработка)+передача+сбыт","WARM"]
[59,"Калининградская область","Городской округ Мамоновский","27712000","Городской округ Мамоновский","27712000","30372540","Муниципальное унитарное предприятие жилищного коммунального хозяйства \"Коммунальщик\"","3915008628","391501001","производство (некомбинированная выработка)+передача+сбыт","WARM"]
[60,"Калининградская область","Неманский муниципальный район","27621000","Неманское городское поселение","27621101","26423883","Неманское городское МУП \"Теплосеть\"","3909001053","390901001","производство (некомбинированная выработка)+передача+сбыт","WARM"]
[61,"Калининградская область","Балтийский муниципальный район","27605000","Балтийское городское поселение","27605101","26356705","ОАО \"33 судоремонтный завод\"","3901500276","390101001","производство (некомбинированная выработка)+сбыт","WARM"]
[62,"Калининградская область","Городской округ город Калининград","27701000","Городской округ город Калининград","27701000","26356711","ОАО \"Балткран\"","3903006136","390601001","производство (некомбинированная выработка)+передача+сбыт","WARM"]
[63,"Калининградская область","Городской округ город Калининград","27701000","Городской округ город Калининград","27701000","26535777","ОАО \"Калининградская генерирующая компания (Калининградский филиал \"ТЭЦ-1\")\"","3905601701","390643001","производство комбинированная выработка","WARM"]
[64,"Калининградская область","Городской округ город Калининград","27701000","Городской округ город Калининград","27701000","26535777","ОАО \"Калининградская генерирующая компания (Калининградский филиал \"ТЭЦ-1\")\"","3905601701","390643001","Передача+Сбыт","WARM"]
[65,"Калининградская область","Городской округ город Калининград","27701000","Городской округ город Калининград","27701000","26535781","ОАО \"Калининградская генерирующая компания\"","3905601701","390601001","Передача+Сбыт","WARM"]
[66,"Калининградская область","Городской округ город Калининград","27701000","Городской округ город Калининград","27701000","26535781","ОАО \"Калининградская генерирующая компания\"","3905601701","390601001","производство комбинированная выработка","WARM"]
[67,"Калининградская область","Городской округ Гусевский","27709000","Городской округ Гусевский","27709000","26535779","ОАО \"Калининградская генерирующая компания\" (Гусевский филиал ОАО \"Калининградская генерирующая компания\" (Гусевская ТЭЦ))","3905601701","390202001","Передача+Сбыт","WARM"]
[68,"Калининградская область","Городской округ Гусевский","27709000","Городской округ Гусевский","27709000","26535779","ОАО \"Калининградская генерирующая компания\" (Гусевский филиал ОАО \"Калининградская генерирующая компания\" (Гусевская ТЭЦ))","3905601701","390202001","производство комбинированная выработка","WARM"]
[69,"Калининградская область","Городской округ город Калининград","27701000","Городской округ город Калининград","27701000","26356713","ОАО \"Кварц\"","3903010326","390401001","производство (некомбинированная выработка)+передача+сбыт","WARM"]
[70,"Калининградская область","Городской округ город Калининград","27701000","Городской округ город Калининград","27701000","26639774","ОАО \"Молоко\"","3903006376","390801001","производство (некомбинированная выработка)+передача+сбыт","WARM"]
[71,"Калининградская область","Черняховский муниципальный район","27639000","Черняховское городское поселение","27639101","26356747","ОАО \"Черняховский авторемонтный завод\"","3914000337","391401001","производство (некомбинированная выработка)+сбыт","WARM"]
[72,"Калининградская область","Городской округ город Калининград","27701000","Городской округ город Калининград","27701000","26356718","ОАО институт \"Запводпроект\"","3905004021","390601001","производство (некомбинированная выработка)+передача+сбыт","WARM"]
[73,"Калининградская область","Городской округ Пионерский","27717000","Городской округ Пионерский","27717000","26425108","ОГСУСО Дом-интернат для престарелых и инвалидов \"Сосновая усадьба\"","3910002380","391001001","производство (некомбинированная выработка)+передача+сбыт","WARM"]
[74,"Калининградская область","Городской округ город Калининград","27701000","Городской округ город Калининград","27701000","30359596","ООО \"БалтРыбПром\"","3906296539","390601001","производство (некомбинированная выработка)+передача+сбыт","WARM"]
[75,"Калининградская область","Городской округ город Калининград","27701000","Городской округ город Калининград","27701000","26578954","ООО \"БалтТехПром\"","3904058970","390501001","производство (некомбинированная выработка)+передача+сбыт","WARM"]
[76,"Калининградская область","Багратионовский муниципальный район","27603000","Багратионовское городское поселение","27603101","27971438","ООО \"ВЕГА 111\"","3906249867","390601001","производство (некомбинированная выработка)+передача+сбыт","WARM"]
[77,"Калининградская область","Городской округ Гусевский","27709000","Городской округ Гусевский","27709000","27967373","ООО \"Гранит плюс\"","3906257755","390601001","производство (некомбинированная выработка)+передача+сбыт","WARM"]
[78,"Калининградская область","Городской округ город Калининград","27701000","Городской округ город Калининград","27701000","30391201","ООО \"Дельта С\"","3906332258","390601001","производство комбинированная выработка","WARM"]
[79,"Калининградская область","Городской округ Гусевский","27709000","Городской округ Гусевский","27709000","26804336","ООО \"ЖКХ-сервис\"","3902008780","390201001","производство (некомбинированная выработка)+передача+сбыт","WARM"]
[80,"Калининградская область","Городской округ Мамоновский","27712000","Городской округ Мамоновский","27712000","27540586","ООО \"ЖЭУ \" (МО Мамоновский ГО)","3915500117","391501001","производство (некомбинированная выработка)+передача+сбыт","WARM"]
[81,"Калининградская область","Городской округ Зеленоградский","27710000","Городской округ Зеленоградский","27710000","30364417","ООО \"Зеленоградские тепловые сети\"","3918012044","391801001","производство (некомбинированная выработка)+передача+сбыт","WARM"]
[82,"Калининградская область","Городской округ Зеленоградский","27710000","Городской округ Зеленоградский","27710000","26356729","ООО \"Калина\"","3907058093","390701001","производство (некомбинированная выработка)+передача+сбыт","WARM"]
[83,"Калининградская область","Городской округ Гурьевский","27707000","Городской округ Гурьевский","27707000","27301108","ООО \"Калининград\"","3907003489","391701001","производство (некомбинированная выработка)+передача+сбыт","WARM"]
[84,"Калининградская область","Городской округ город Калининград","27701000","Городской округ город Калининград","27701000","26356715","ООО \"Коммерсант-Центр\"","3904041599","390401001","производство (некомбинированная выработка)+сбыт","WARM"]
[85,"Калининградская область","Городской округ Янтарный","27740000","Городской округ Янтарный","27740000","26430898","ООО \"Коммунальные сети\"","3912501088","391201001","Передача+Сбыт","WARM"]
[86,"Калининградская область","Городской округ город Калининград","27701000","Городской округ город Калининград","27701000","26356722","ООО \"Комфорт Сервис\"","3905068138","390501001","производство (некомбинированная выработка)+передача+сбыт","WARM"]
[87,"Калининградская область","Городской округ Советский","27730000","Городской округ Советский","27730000","26818858","ООО \"Комфорт\"","3911800279","391101001","производство (некомбинированная выработка)","WARM"]
[88,"Калининградская область","Городской округ Светловский","27725000","Городской округ Светловский","27725000","26606859","ООО \"ЛУКОЙЛ-Калининградморнефть\"","3900004998","997150001","производство (некомбинированная выработка)+передача+сбыт","WARM"]
[89,"Калининградская область","Городской округ Гусевский","27709000","Городской округ Гусевский","27709000","26805405","ООО \"Лермонтовское ЖКХ\"","3914800703","391401001","производство (некомбинированная выработка)+передача+сбыт","WARM"]
[90,"Калининградская область","Городской округ Светловский","27725000","Городской округ Светловский","27725000","27569598","ООО \"Лукойл-КНТ\"","3913500440","391301001","производство (некомбинированная выработка)+передача+сбыт","WARM"]
[91,"Калининградская область","Городской округ город Калининград","27701000","Городской округ город Калининград","27701000","27971336","ООО \"НЕО - КАЛИНИНГРАД\"","3906138885","390401001","производство (некомбинированная выработка)+передача+сбыт","WARM"]
[92,"Калининградская область","Неманский муниципальный район","27621000","Неманское городское поселение","27621101","26361097","ООО \"Неманский ЦБК\"","7804131655","390901001","производство (некомбинированная выработка)","WARM"]
[93,"Калининградская область","Багратионовский муниципальный район","27603000","Нивенское сельское поселение","27603406","26639691","ООО \"Оскерон Плюс\"","3906182323","391501001","производство (некомбинированная выработка)+передача+сбыт","WARM"]
[94,"Калининградская область","Городской округ Зеленоградский","27710000","Городской округ Зеленоградский","27710000","27971541","ООО \"Санаторий \"Зеленоградск\"","3918008746","391801001","производство (некомбинированная выработка)+передача+сбыт","WARM"]
[95,"Калининградская область","Светлогорский муниципальный район","27634000","город Светлогорск","27634101","26356742","ООО \"Санаторий \"Отрадное\"","3912006728","391201001","производство (некомбинированная выработка)+передача+сбыт","WARM"]
[96,"Калининградская область","Городской округ Советский","27730000","Городской округ Советский","27730000","26818817","ООО \"Сервистепло\"","3911800230","391101001","производство (некомбинированная выработка)","WARM"]
[97,"Калининградская область","Городской округ Гурьевский","27707000","Городской округ Гурьевский","27707000","26430775","ООО \"СпецГазАвтоматика\"","3906136790","391701001","производство (некомбинированная выработка)+сбыт","WARM"]
[98,"Калининградская область","Городской округ город Калининград","27701000","Городской округ город Калининград","27701000","26356723","ООО \"ТПК \"Балтптицепром\"","3905070698","390501001","производство (некомбинированная выработка)+сбыт","WARM"]
[99,"Калининградская область","Городской округ Светловский","27725000","Городской округ Светловский","27725000","26499266","ООО \"ТеплоСтройСервис\"","3913010519","391301001","производство (некомбинированная выработка)+передача+сбыт","WARM"]
[100,"Калининградская область","Городской округ Зеленоградский","27710000","Городской округ Зеленоградский","27710000","26833264","ООО \"Тепловик\"","3906218019","390601001","производство (некомбинированная выработка)+передача+сбыт","WARM"]
[101,"Калининградская область","Городской округ Советский","27730000","Городской округ Советский","27730000","26818804","ООО \"Тепломаш\"","3911800254","391101001","производство (некомбинированная выработка)","WARM"]
[102,"Калининградская область","Городской округ Пионерский","27717000","Городской округ Пионерский","27717000","27989900","ООО \"Теплосеть\" МО \"Пионерский городской округ\"","3910501477","391001001","производство (некомбинированная выработка)+передача+сбыт","WARM"]
[103,"Калининградская область","Городской округ Советский","27730000","Городской округ Советский","27730000","26818812","ООО \"Теплосетьплюс\"","3911800261","391101001","производство (некомбинированная выработка)","WARM"]
[104,"Калининградская область","Городской округ Советский","27730000","Городской округ Советский","27730000","26818831","ООО \"Теплосистемы 1\"","3911800328","391101001","производство (некомбинированная выработка)","WARM"]
[105,"Калининградская область","Городской округ Советский","27730000","Городской округ Советский","27730000","26818836","ООО \"Теплосистемы\"","3911800286","391101001","производство (некомбинированная выработка)","WARM"]
[106,"Калининградская область","Городской округ Советский","27730000","Городской округ Советский","27730000","26818843","ООО \"Теплотехник 1\"","3911800335","391101001","производство (некомбинированная выработка)","WARM"]
[107,"Калининградская область","Городской округ Советский","27730000","Городской округ Советский","27730000","26818849","ООО \"Теплотехник\"","3911800247","391101001","производство (некомбинированная выработка)","WARM"]
[108,"Калининградская область","Черняховский муниципальный район","27639000","Черняховское городское поселение","27639101","28425310","ООО \"ТопБалт\"","3906257748","391401001","производство (некомбинированная выработка)+передача+сбыт","WARM"]
[109,"Калининградская область","Светлогорский муниципальный район","27634000","поселок Приморье","27634103","26639680","ООО \"Турбаза \"Якорь\"","3912006693","391201001","производство (некомбинированная выработка)+передача+сбыт","WARM"]
[110,"Калининградская область","Городской округ Гурьевский","27707000","Городской округ Гурьевский","27707000","28454420","ООО \"ЭКОСТАНДАРТ\"","3912503769","391201001","производство (некомбинированная выработка)","WARM"]
[111,"Калининградская область","Черняховский муниципальный район","27639000","Черняховское городское поселение","27639101","28869676","ООО \"Эко Энерджи Светлый\"","3906316168","390601001","производство (некомбинированная выработка)","WARM"]
[112,"Калининградская область","Городской округ Гурьевский","27707000","Городской округ Гурьевский","27707000","30390887","ООО \"Электросеть\"","3906208268","391701001","производство комбинированная выработка","WARM"]
[113,"Калининградская область","Городской округ Гурьевский","27707000","Городской округ Гурьевский","27707000","26639737","ООО \"Энерготраст Калининград\"","3906196157","390601001","производство (некомбинированная выработка)","WARM"]
[114,"Калининградская область","Городской округ город Калининград","27701000","Городской округ город Калининград","27701000","30346115","Обособленное подразделение \"Калининградское\" АО \"ГУ ЖКХ\"","5116000922","390645001","производство (некомбинированная выработка)+передача+сбыт","WARM"]
[115,"Калининградская область","Черняховский муниципальный район","27639000","Черняховское городское поселение","27639101","26356716","СП ООО \"Энергетика и экология\"","3904043660","391401001","производство (некомбинированная выработка)+сбыт","WARM"]
[116,"Калининградская область","Городской округ Светловский","27725000","Городской округ Светловский","27725000","26356744","УМП \"Светловская теплосеть\"","3913001144","392301001","производство (некомбинированная выработка)+передача+сбыт","WARM"]
[117,"Калининградская область","Городской округ город Калининград","27701000","Городской округ город Калининград","27701000","27566222","ФГКОУ ВПО \"Калининградский пограничный институт  ФСБ России\"","3907015131","390701001","производство (некомбинированная выработка)+передача+сбыт","WARM"]
[118,"Калининградская область","Балтийский муниципальный район","27605000","Балтийское городское поселение","27605101","28977645","ФГУП \"Росморпорт\"","7702352454","770701001","производство (некомбинированная выработка)+передача+сбыт","WARM"]
[119,"Калининградская область","Багратионовский муниципальный район","27603000","Пограничное сельское поселение","27603408","26407581","ФКУ  ИК-13  УФСИН  России  по  Калининградской области","3915004239","391501001","производство (некомбинированная выработка)","WARM"]
[120,"Калининградская область","Черняховский муниципальный район","27639000","Черняховское городское поселение","27639101","26778838","ФКУ \"Калининградская ПБСТИН\"","3914008752","391401001","производство (некомбинированная выработка)+передача+сбыт","WARM"]
[121,"Калининградская область","Городской округ город Калининград","27701000","Городской округ город Калининград","27701000","26356720","ФКУ ИК - 8 УФСИН России по Калининградской области","3905018578","390501001","производство (некомбинированная выработка)+передача+сбыт","WARM"]
[122,"Калининградская область","Городской округ Гвардейский","27706000","Городской округ Гвардейский","27706000","26638866","ФКУ ИК-7 УФСИН России  по Калининградской области","3916008660","391601001","производство (некомбинированная выработка)+передача+сбыт","WARM"]
[123,"Калининградская область","Городской округ Гвардейский","27706000","Городской округ Гвардейский","27706000","26356757","ФКУ ЛИУ - 5 УФСИН России по Калининградской области","3916006006","391601001","производство (некомбинированная выработка)+передача+сбыт","WARM"]
[124,"Калининградская область","Городской округ город Калининград","27701000","Городской округ город Калининград","27701000","26615929","Филиал \"Калининградская ТЭЦ-2\" АО \"Интер РАО - Электрогенерация\"","7704784450","390643001","производство комбинированная выработка","WARM"]

{"sheet":"modClassifierValidate","index":24,"n_rows":0,"n_cols":0,"rows_kept":0,"cut":false,"hidden":true,"merged":[]}

{"sheet":"modProv","index":25,"n_rows":0,"n_cols":0,"rows_kept":0,"cut":false,"hidden":true,"merged":[]}

{"sheet":"modHyp","index":26,"n_rows":0,"n_cols":0,"rows_kept":0,"cut":false,"hidden":true,"merged":[]}

{"sheet":"modList00","index":27,"n_rows":0,"n_cols":0,"rows_kept":0,"cut":false,"hidden":true,"merged":[]}

{"sheet":"modList02","index":28,"n_rows":0,"n_cols":0,"rows_kept":0,"cut":false,"hidden":true,"merged":[]}

{"sheet":"modList03","index":29,"n_rows":0,"n_cols":0,"rows_kept":0,"cut":false,"hidden":true,"merged":[]}

{"sheet":"modList04","index":30,"n_rows":0,"n_cols":0,"rows_kept":0,"cut":false,"hidden":true,"merged":[]}

{"sheet":"modList05","index":31,"n_rows":0,"n_cols":0,"rows_kept":0,"cut":false,"hidden":true,"merged":[]}

{"sheet":"modList06","index":32,"n_rows":0,"n_cols":0,"rows_kept":0,"cut":false,"hidden":true,"merged":[]}

{"sheet":"modList07","index":33,"n_rows":0,"n_cols":0,"rows_kept":0,"cut":false,"hidden":true,"merged":[]}

{"sheet":"modfrmDateChoose","index":34,"n_rows":0,"n_cols":0,"rows_kept":0,"cut":false,"hidden":true,"merged":[]}

{"sheet":"modComm","index":35,"n_rows":0,"n_cols":0,"rows_kept":0,"cut":false,"hidden":true,"merged":[]}

{"sheet":"modThisWorkbook","index":36,"n_rows":0,"n_cols":0,"rows_kept":0,"cut":false,"hidden":true,"merged":[]}

{"sheet":"REESTR_MO","index":37,"n_rows":50,"n_cols":4,"rows_kept":50,"cut":false,"hidden":true,"merged":[]}
["№","МР","МО","МО_ОКТМО"]
[1,"Багратионовский муниципальный район","Багратионовский муниципальный район","27603000"]
[2,"Багратионовский муниципальный район","Багратионовское городское поселение","27603101"]
[3,"Багратионовский муниципальный район","Гвардейское сельское поселение","27603402"]
[4,"Багратионовский муниципальный район","Долгоруковское сельское поселение","27603404"]
[5,"Багратионовский муниципальный район","Нивенское сельское поселение","27603406"]
[6,"Багратионовский муниципальный район","Пограничное сельское поселение","27603408"]
[7,"Балтийский муниципальный район","Балтийский муниципальный район","27605000"]
[8,"Балтийский муниципальный район","Балтийское городское поселение","27605101"]
[9,"Балтийский муниципальный район","Приморское городское поселение","27605102"]
[10,"Балтийский муниципальный район","Сельское поселение Дивное","27605402"]
[11,"Городской округ Гвардейский","Городской округ Гвардейский","27706000"]
[12,"Городской округ Гурьевский","Городской округ Гурьевский","27707000"]
[13,"Городской округ Гусевский","Городской округ Гусевский","27709000"]
[14,"Городской округ Зеленоградский","Городской округ Зеленоградский","27710000"]
[15,"Городской округ Краснознаменский","Городской округ Краснознаменский","27713000"]
[16,"Городской округ Ладушкинский","Городской округ Ладушкинский","27711000"]
[17,"Городской округ Мамоновский","Городской округ Мамоновский","27712000"]
[18,"Городской округ Озерский","Городской округ Озерский","27716000"]
[19,"Городской округ Пионерский","Городской округ Пионерский","27717000"]
[20,"Городской округ Правдинский","Городской округ Правдинский","27719000"]
[21,"Городской округ Светловский","Городской округ Светловский","27725000"]
[22,"Городской округ Славский","Городской округ Славский","27727000"]
[23,"Городской округ Советский","Городской округ Советский","27730000"]
[24,"Городской округ Янтарный","Городской округ Янтарный","27740000"]
[25,"Городской округ город Калининград","Городской округ город Калининград","27701000"]
[26,"Неманский муниципальный район","Жилинское сельское поселение","27621402"]
[27,"Неманский муниципальный район","Лунинское сельское поселение","27621404"]
[28,"Неманский муниципальный район","Неманский муниципальный район","27621000"]
[29,"Неманский муниципальный район","Неманское городское поселение","27621101"]
[30,"Нестеровский муниципальный район","Илюшинское сельское поселение","27624402"]
[31,"Нестеровский муниципальный район","Нестеровский муниципальный район","27624000"]
[32,"Нестеровский муниципальный район","Нестеровское городское поселение","27624101"]
[33,"Нестеровский муниципальный район","Пригородное сельское поселение","27624404"]
[34,"Нестеровский муниципальный район","Чистопрудненское сельское поселение","27624406"]
[35,"Полесский муниципальный район","Головкинское сельское поселение","27630402"]
[36,"Полесский муниципальный район","Залесовское сельское поселение","27630404"]
[37,"Полесский муниципальный район","Полесский муниципальный район","27630000"]
[38,"Полесский муниципальный район","Полесское городское поселение","27630101"]
[39,"Полесский муниципальный район","Саранское сельское поселение","27630406"]
[40,"Полесский муниципальный район","Тургеневское сельское поселение","27630408"]
[41,"Светлогорский муниципальный район","Светлогорский муниципальный район","27634000"]
[42,"Светлогорский муниципальный район","город Светлогорск","27634101"]
[43,"Светлогорский муниципальный район","поселок Донское","27634102"]
[44,"Светлогорский муниципальный район","поселок Приморье","27634103"]
[45,"Черняховский муниципальный район","Калужское сельское поселение","27639402"]
[46,"Черняховский муниципальный район","Каменское сельское поселение","27639404"]
[47,"Черняховский муниципальный район","Свободненское сельское поселение","27639406"]
[48,"Черняховский муниципальный район","Черняховский муниципальный район","27639000"]
[49,"Черняховский муниципальный район","Черняховское городское поселение","27639101"]

{"sheet":"modfrmReestrMR","index":38,"n_rows":0,"n_cols":0,"rows_kept":0,"cut":false,"hidden":true,"merged":[]}

{"sheet":"modfrmCheckUpdates","index":39,"n_rows":0,"n_cols":0,"rows_kept":0,"cut":false,"hidden":true,"merged":[]}

{"sheet":"CopyList","index":40,"n_rows":13,"n_cols":9,"rows_kept":13,"cut":false,"hidden":true,"merged":[]}
[]
[]
[]
[]
[]
[]
[]
[]
[]
[]
[]
[null,null,null,null,"Наименование поставщика",null,"№ п/п","Способ приобретения"]
[null,null,null,null,null,null,null,"Способ приобретения","Реквизиты договора"]